Cogmind - Beta 16 @@@ ROGUE MODE // 2026.01.03 @ 03:01:53 Player: tsintsir Result: Destroyed by C-35 Carver with Carbide Saw Performance ------------- Evolutions (5) 2500 Regions Visited (8) 1600 Robots Destroyed (15) 75 Value Destroyed (228) 228 Prototype IDs (1) 20 Alien Tech Used (0) 0 Bonus (0) 0 TOTAL SCORE: 4423 Bonus ------- None Cogmind --------- Core Integrity 0/1000 Matter 21/300 Energy 42/100 System Corruption 1% Temperature Cool (0) Movement Core (100) Ox1 Location -5/Factory Parts ------- > --- POWER (1) -------- (None) > --- PROPULSION (4) --- (None) > --- UTILITY (10) ----- Improved Signal Interpreter Advanced Terrain Scan Processor Hacking Suite > --- WEAPON (2) ------- Falx > --- INVENTORY (5) ---- Light Deuterium Engine Advanced Signal Interpreter Advanced Targeting Computer Arc Projector Peak State ------------ > --- POWER ------------ (None) > --- PROPULSION ------- Flight Unit Flight Unit Flight Unit Flight Unit > --- UTILITY ---------- Small Storage Unit Improved Sensor Array Improved Signal Interpreter Advanced Terrain Scan Processor Light Armor Plating Hacking Suite System Shield > --- WEAPON ----------- Proton Missile Launcher > --- INVENTORY -------- Light Deuterium Engine Advanced Signal Interpreter Advanced Targeting Computer Arc Projector Proton Missile Launcher Advanced Remote Datajack Falx [Rating: 29] Favorites ----------- Power Light Deuterium Engine Engine Light Deuterium Engine Propulsion Flight Unit Wheel Wheel Hover Unit Hover Unit Flight Unit Flight Unit Utility Small Storage Unit Device Improved Sensor Array Storage Small Storage Unit Processor Improved Signal Interpreter Hackware System Shield Protection Light Armor Plating Weapon EM Pulse Gun Energy Gun EM Pulse Gun Ballistic Gun Light Assault Rifle Launcher Proton Missile Launcher Slashing Weapon Falx Build | -11 -10 -10 -9 -9 -8 -7 -6 -5 ------- Run | Yrd Mat Min Mat Min Mat Fac Fac Fac Slots Evolved 10 | . . . 2 . 2 2 2 2 Power . | . . . . . . . . . Propulsion 2 | . . . 1 . 1 . . . Utility 8 | . . . 1 . 1 2 2 2 Weapon . | . . . . . . . . . Parts Attached 32 | 7 3 . 7 1 5 6 1 2 Power 4 | 1 . . 2 . 1 . . . Engine 4 | 1 . . 2 . 1 . . . Core . | . . . . . . . . . Reactor . | . . . . . . . . . Propulsion 10 | 2 2 . 3 1 1 1 . . Treads . | . . . . . . . . . Leg . | . . . . . . . . . Wheel 2 | 2 . . . . . . . . Hover 3 | . 2 . . . . 1 . . Flight 5 | . . . 3 1 1 . . . Utility 10 | 2 . . 2 . 2 3 1 . Device 2 | 1 . . . . . 1 . . Storage 1 | 1 . . . . . . . . Processor 2 | . . . . . . 1 1 . Hackware 3 | . . . 1 . 1 1 . . Protection 2 | . . . 1 . 1 . . . Artifact . | . . . . . . . . . Weapon 8 | 2 1 . . . 1 2 . 2 Energy Gun 2 | 1 . . . . 1 . . . Energy Cannon . | . . . . . . . . . Ballistic Gun 3 | 1 1 . . . . 1 . . Ballistic Cannon . | . . . . . . . . . Launcher 2 | . . . . . . 1 . 1 Special Weapon . | . . . . . . . . . Impact Weapon . | . . . . . . . . . Slashing Weapon 1 | . . . . . . . . 1 Piercing Weapon . | . . . . . . . . . Special Melee Weapon . | . . . . . . . . . Unidentified Prototypes 1 | . . . . . 1 . . . Parts Lost 16 | . . . 5 2 . . . 9 Power 3 | . . . 1 1 . . . 1 Propulsion 6 | . . . 2 1 . . . 3 Utility 4 | . . . . . . . . 4 Weapon 3 | . . . 2 . . . . 1 Highest Loss Streak 9 | . . . 5 2 . . . 9 To Critical Strikes . | . . . . . . . . . Average Backups 6 | . 4 6 5 7 6 7 7 7 Power . | . 1 1 . . . 1 1 1 Propulsion . | . 1 1 . 1 . . . . Utility 2 | . 1 2 2 4 3 3 2 2 Weapon 2 | . . 1 . . 1 2 3 3 Tool/Special . | . . . . . . . . . Unused Backups 15 | . . . 1 . 2 5 1 6 Power 1 | . . . . . . . . 1 Propulsion 1 | . . . 1 . . . . . Utility 5 | . . . . . 1 2 . 2 Weapon 4 | . . . . . 1 1 . 2 Tool/Special 4 | . . . . . . 2 1 1 Average Slot Usage (%) 81 | . 98 100 73 77 80 82 80 64 Engine 8 | . 14 14 10 11 9 7 6 4 Hover 6 | . 21 28 15 . . . . . Flight 20 | . . . 2 33 36 30 26 20 Device 7 | . 14 14 9 . . 5 6 4 Storage 8 | . 14 14 11 11 9 7 6 4 Processor 5 | . . . . . . 5 13 11 Hackware 9 | . . . 5 11 8 12 13 10 Protection 5 | . . . . . 15 9 6 4 Energy Gun 3 | . 14 10 7 . . . . . Ballistic Gun 4 | . 14 17 10 11 2 . . . Peak Build Rating 29 | 7 7 7 10 9 19 23 28 29 Average Rating 17 | 5 6 7 7 8 13 21 27 26 On Entrance 11 | . 7 7 7 9 9 14 23 28 Avg Prop Armor Cover (%) 14 | . . . . . . . 14 . Naked Turns . | . . . . . . . . . Heaviest Build 20 | 13 13 12 12 10 16 20 14 14 Greatest Support 20 | 20 20 12 14 12 20 20 20 20 Greatest Overweight (x) 4 | . 2 . 1 . . . 4 1 Average Overweight (x) . | . . . . . . . . . Largest Inventory Capacity 8 | 8 8 8 8 8 8 8 8 8 Average Capacity 7 | 7 8 8 8 8 8 8 8 7 Most Carried 8 | 2 6 6 8 8 8 8 8 8 Average Carried 6 | . 4 6 5 7 6 7 7 7 Final Capacity 8 | 8 8 8 8 8 8 8 8 5 Final Carried 8 | 2 6 6 8 6 8 8 8 4 Class Distribution -------------------- 64% | Scavenger-Sprinter 27% | Mutant 7% | Scavenger-Mutant Dominant Class ---------------- Mutant | -10/Materials Mutant | -10/Mines Mutant | -9/Materials Scavenger-Mutant | -9/Mines Scavenger-Sprinter | -8/Materials Scavenger-Sprinter | -7/Factory Scavenger-Sprinter | -6/Factory Scavenger-Sprinter | -5/Factory Resources | -11 -10 -10 -9 -9 -8 -7 -6 -5 ----------- Run | Yrd Mat Min Mat Min Mat Fac Fac Fac Matter Collected 393 | 229 103 47 . . . . . 14 Remotely . | . . . . . . . . . Salvage Created 352 | 21 120 91 85 . . . . 35 Parts 39 | 5 11 10 8 . . . . 5 Haulers Intercepted 1 | . 1 . . . . . . . Recyclers Shooed 1 | 1 . . . . . . . . Parts Field Recycled . | . . . . . . . . . Retrieved Matter . | . . . . . . . . . Parts Self-Destructed . | . . . . . . . . . Prevented . | . . . . . . . . . Parts Restored . | . . . . . . . . . Kills | -11 -10 -10 -9 -9 -8 -7 -6 -5 ------- Run | Yrd Mat Min Mat Min Mat Fac Fac Fac Combat Hostiles Destroyed 10 | . 2 4 3 . . . . 1 Melee 1 | . . . . . . . . 1 Guns 9 | . 2 4 3 . . . . . Classes Destroyed 7 | 1 4 . 1 . . . . 1 Tunneler 2 | 1 . 1 . . . . . . Hauler 1 | . 1 . . . . . . . Operator 1 | . 1 . . . . . . . Watcher 1 | . 1 . . . . . . . Swarmer 8 | . 2 4 2 . . . . . Cutter 1 | . . . . . . . . 1 Sentry 1 | . . . 1 . . . . . Best Kill Streak 3 | 1 2 3 3 . . . . 1 Combat Bots Only 3 | . 2 3 3 . . . . 1 Max Kills in Single Turn 1 | 1 1 1 1 . . . . 1 Gunslinging . | . . . . . . . . . Exploded . | . . . . . . . . . Melee 1 | . . . . . . . . 1 Uniques/NPCs Destroyed . | . . . . . . . . . Combat | -11 -10 -10 -9 -9 -8 -7 -6 -5 -------- Run | Yrd Mat Min Mat Min Mat Fac Fac Fac Hostile Shots Fired 153 | . 5 26 40 16 . . 23 43 Missed 53 | . 3 5 15 9 . . 13 8 Hits 100 | . 2 21 25 7 . . 10 35 Melee 25 | . . . . 1 . . . 24 Projectile 75 | . 2 21 25 6 . . 10 11 Critical Strikes 8 | . . . 1 . . . . 7 Damage Taken 1986 | . 15 162 246 111 . . 113 1339 Core 1141 | . 6 36 31 38 . . 19 1011 Absorbed by Shields 16 | . . . . . . . 16 . Core Remaining (%) 93 | 100 . 83 . 82 100 100 97 . Volleys Fired 43 | 6 10 12 12 . . 2 . 1 Largest 2 | 2 2 2 2 . . 1 . 1 Hottest 60 | 60 60 60 60 . . 36 . 39 Shots Fired 79 | 12 20 24 20 . . 2 . 1 Gun 77 | 12 20 24 20 . . 1 . . Cannon . | . . . . . . . . . Launcher 2 | . . . . . . 1 . 1 Special . | . . . . . . . . . Kinetic 50 | 6 10 17 16 . . 1 . . Thermal . | . . . . . . . . . Explosive . | . . . . . . . . . Electromagnetic 29 | 6 10 7 4 . . 1 . 1 Robot Hit Streak 6 | 3 4 6 5 . . . . . Robot Miss Streak 4 | 2 1 4 2 . . . . 1 Penetration Max . | . . . . . . . . . Secondary Targets 2 | . . 1 1 . . . . . Max Gunslinging Chain 1 | . . 1 1 . . . . . Shots Hit Robots 43 | 6 12 12 12 . . . . 1 Core Hits 22 | 1 7 5 4 . . . . 5 Critical Kills . | . . . . . . . . . Critical Parts Destroyed 1 | . 1 . . . . . . . Critical Strikes 2 | . 1 . 1 . . . . . Destroy 1 | . 1 . . . . . . . Corrupt 1 | . . . 1 . . . . . Melee Attacks 2 | . . . . . . . . 2 Impact . | . . . . . . . . . Slashing 2 | . . . . . . . . 2 Piercing . | . . . . . . . . . Sneak Attacks . | . . . . . . . . . Combat Hostiles . | . . . . . . . . . Follow-up Attacks . | . . . . . . . . . Damage Inflicted 626 | 76 126 139 166 . . . . 119 Guns 507 | 76 126 139 166 . . . . . Cannons . | . . . . . . . . . Explosions 57 | . . . . . . . . 57 Melee 45 | . . . . . . . . 45 Ramming 17 | . . . . . . . . 17 Kinetic 294 | 25 64 77 128 . . . . . Thermal . | . . . . . . . . . Explosive . | . . . . . . . . . Electromagnetic 270 | 51 62 62 38 . . . . 57 Impact . | . . . . . . . . . Slashing 45 | . . . . . . . . 45 Piercing . | . . . . . . . . . Highest Corruption 5 | . . . . 5 . . 2 1 Average Corruption 2 | . . . . 5 . . 1 1 Corruption Purged . | . . . . . . . . . Corruption Blocked . | . . . . . . . . . Effects 2 | . . . . 1 . . 1 . Energy Discharges 1 | . . . . 1 . . . . Data Loss (minor) 1 | . . . . . . . 1 . Overload Shots . | . . . . . . . . . Overflow Damage 9 | . . . . . . . . 9 Projectiles . | . . . . . . . . . Explosions 9 | . . . . . . . . 9 Melee . | . . . . . . . . . Knockbacks . | . . . . . . . . . Impact . | . . . . . . . . . Kinetic . | . . . . . . . . . Secondary . | . . . . . . . . . Self-Inflicted Damage 32 | . . . . . . . . 32 Shots 1 | . . . . . . . . 1 Rammed 4 | . . . . . . . . 4 Targets Rammed 4 | . . . . . . . . 4 Kicked . | . . . . . . . . . Crushed . | . . . . . . . . . Highest Temperature 68 | . 68 48 22 4 2 4 . . Average Temperature 20 | . 30 16 12 4 2 4 . . Received Heat Transfer 78 | . . . 36 24 . . . 18 Siege Activations . | . . . . . . . . . Martial Activations . | . . . . . . . . . Shielding Activations . | . . . . . . . . . Robots Disrupted . | . . . . . . . . . Combat Hostiles . | . . . . . . . . . Robots Corrupted . | . . . . . . . . . Combat Hostiles . | . . . . . . . . . Parts Fried 1 | . . . . . . . . 1 Impact Corruptions . | . . . . . . . . . Robots Melted . | . . . . . . . . . Combat Hostiles . | . . . . . . . . . Parts Melted . | . . . . . . . . . Heat Transferred . | . . . . . . . . . Parts Sabotaged . | . . . . . . . . . Parts Stolen . | . . . . . . . . . Parts Stripped . | . . . . . . . . . Power Chain Reactions . | . . . . . . . . . Alert | -11 -10 -10 -9 -9 -8 -7 -6 -5 ------- Run | Yrd Mat Min Mat Min Mat Fac Fac Fac Maximum Alert Level . | . . . . . . . . . Low Security (%) 100 | 100 100 100 100 100 100 100 100 100 Level 1 . | . . . . . . . . . Level 2 . | . . . . . . . . . Level 3 . | . . . . . . . . . Level 4 . | . . . . . . . . . Level 5 . | . . . . . . . . . High Security . | . . . . . . . . . Max Security . | . . . . . . . . . Peak Influence 72 | 5 65 72 50 51 7 53 42 30 Initial 39 | . . 7 39 11 7 . 21 10 Average 11 | . 18 52 19 19 1 4 9 5 Influence Increases 655 | 5 89 125 84 60 . 112 99 81 Destroy 0b10 Robot/C 200 | . 40 80 60 . . . . 20 Destroy 0b10 Robot/NC 25 | 5 15 5 . . . . . . Destroy Leader 44 | . 14 10 10 . . . . 10 Successful Hack 116 | . 5 . 14 . . 52 24 21 Disable Machine 30 | . . . . . . 15 . 15 Partial Spotted 45 | . . . . . . . 45 . Lose Combat Pursuer 195 | . 15 30 . 60 . 45 30 15 Influence Decreases 645 | 5 69 43 156 69 21 67 122 93 Entered New Map 145 | . . 13 63 19 14 . 24 12 Time Decay 455 | 5 69 30 83 30 7 67 98 66 Lost Part 45 | . . . 10 20 . . . 15 Squads Dispatched 7 | . . . . . . 4 2 1 Investigation 2 | . . . . . . 2 . . Extermination 3 | . . . . . . 2 1 . Reinforcement 2 | . . . . . . . 1 1 Assault . | . . . . . . . . . Garrison . | . . . . . . . . . Intercept . | . . . . . . . . . Searches Triggered . | . . . . . . . . . Construction Impeded . | . . . . . . . . . Haulers Reinforced . | . . . . . . . . . Active Scanning Responses . | . . . . . . . . . Cargo Convoy Interrupts . | . . . . . . . . . Stealth | -11 -10 -10 -9 -9 -8 -7 -6 -5 --------- Run | Yrd Mat Min Mat Min Mat Fac Fac Fac Distress Signals 1 | . . . . . . . 1 . Communications Jammed . | . . . . . . . . . Distress Signals . | . . . . . . . . . Times Spotted 45 | . 6 5 5 10 . 5 5 9 Peak Tracking Total 8 | . 3 3 4 6 . 3 4 8 Tactical Retreats 8 | . 1 1 . 2 . 2 1 1 Traps | -11 -10 -10 -9 -9 -8 -7 -6 -5 ------- Run | Yrd Mat Min Mat Min Mat Fac Fac Fac Traps Triggered 3 | . . . 2 . . . 1 . Indirectly . | . . . . . . . . . Trap Hack Attempts . | . . . . . . . . . Triggered . | . . . . . . . . . Disarmed . | . . . . . . . . . Reprogrammed . | . . . . . . . . . Reused 1 | . . . . 1 . . . . Traps Extracted . | . . . . . . . . . Installed 1 | . . . . 1 . . . . Triggered . | . . . . . . . . . Most Traps Carried 1 | . . . . 1 . . . . Machines | -11 -10 -10 -9 -9 -8 -7 -6 -5 ---------- Run | Yrd Mat Min Mat Min Mat Fac Fac Fac Machines Disabled 2 | . . . . . . 1 . 1 Max in Single Turn 1 | . . . . . . 1 . 1 Garrison Access 1 | . . . . . 1 . . . Machines Repaired . | . . . . . . . . . Machines Dismantled . | . . . . . . . . . Machines Sabotaged . | . . . . . . . . . Overloaded Fab Kills . | . . . . . . . . . Hacking | -11 -10 -10 -9 -9 -8 -7 -6 -5 --------- Run | Yrd Mat Min Mat Min Mat Fac Fac Fac Machines Accessed 25 | . 2 . 3 . 3 9 5 3 Terminals 13 | . 2 . 2 . . 5 4 . Fabricators 5 | . . . . . . 3 1 1 Repair Stations . | . . . . . . . . . Recycling Units 1 | . . . . . . . . 1 Scanalyzers 3 | . . . 1 . 2 . . . Garrison Access 3 | . . . . . 1 1 . 1 Total Hacks 56 | . 5 . 11 . 7 17 12 4 Successful 19 | . 1 . 6 . 4 4 2 2 Failed 36 | . 4 . 5 . 2 13 10 2 Catastrophic 11 | . 1 . 2 . . 4 4 . Database Lockouts 1 | . . . . . 1 . . . Manual 28 | . 4 . 6 . . 7 10 1 Terminals 31 | . 5 . 6 . . 10 10 . Fabricators 9 | . . . . . . 6 2 1 Repair Stations . | . . . . . . . . . Recycling Units 2 | . . . . . . . . 2 Scanalyzers 10 | . . . 5 . 5 . . . Garrison Access 4 | . . . . . 2 1 . 1 Terminal Hacks 4 | . 1 . 1 . . 1 1 . Robot Analysis 2 | . 1 . . . . 1 . . Emergency Access Points 1 | . . . . . . . 1 . Terminal Index 1 | . . . 1 . . . . . Fabricator Hacks 4 | . . . . . . 3 1 . Build 4 | . . . . . . 3 1 . Repair Station Hacks . | . . . . . . . . . Recycling Unit Hacks 1 | . . . . . . . . 1 Retrieve Matter 1 | . . . . . . . . 1 Scanalyzer 7 | . . . 4 . 3 . . . Retrieve Study 7 | . . . 4 . 3 . . . Garrison Access Hacks 1 | . . . . . 1 . . . Seal Access 1 | . . . . . 1 . . . Unauthorized Hacks 2 | . . . 1 . . . . 1 Terminals 1 | . . . 1 . . . . . Operators 1 | . . . 1 . . . . . Fabricators . | . . . . . . . . . Repair Stations . | . . . . . . . . . Recycling Units . | . . . . . . . . . Scanalyzers . | . . . . . . . . . Garrison Access 1 | . . . . . . . . 1 Broadcast 1 | . . . . . . . . 1 Data Cores Recovered 1 | . 1 . . . . . . . Used . | . . . . . . . . . Hacking Detections 20 | . 2 . 3 . 1 7 5 2 Full Trace Events 1 | . . . . . . 1 . . Feedback Events . | . . . . . . . . . Feedback Blocked . | . . . . . . . . . Robot Schematics Acquired . | . . . . . . . . . Robots Built 1 | . . . . . . 1 . . Authchips . | . . . . . . . . . Time 40 | . . . . . . 40 . . Total Robot Build Rating 1 | . . . . . . 1 . . Part Schematics Acquired . | . . . . . . . . . Parts Built 6 | . . . . . . 4 2 . Authchips . | . . . . . . . . . Time 170 | . . . . . . 106 64 . Total Part Build Rating 40 | . . . . . . 24 16 . Part Studies Acquired 7 | . . . 4 . 3 . . . Parts Repaired . | . . . . . . . . . Time . | . . . . . . . . . Parts Recycled . | . . . . . . . . . Recycled Matter . | . . . . . . . . . Retrieved Matter . | . . . . . . . . . Retrieved Components . | . . . . . . . . . Parts Scanalyzed . | . . . . . . . . . Part Schematics Acquired . | . . . . . . . . . Parts Damaged . | . . . . . . . . . Bothacking | -11 -10 -10 -9 -9 -8 -7 -6 -5 ------------ Run | Yrd Mat Min Mat Min Mat Fac Fac Fac Used RIF Installer . | . . . . . . . . . Robots Hacked . | . . . . . . . . . Non-combat . | . . . . . . . . . Combat . | . . . . . . . . . Robot Hacks Applied . | . . . . . . . . . Relay Couplers Released . | . . . . . . . . . Fabnet Peak Effective % . | . . . . . . . . . Robots Rewired . | . . . . . . . . . Allies Hacked . | . . . . . . . . . Hacks Repelled . | . . . . . . . . . Allies | -11 -10 -10 -9 -9 -8 -7 -6 -5 -------- Run | Yrd Mat Min Mat Min Mat Fac Fac Fac Total Allies 1 | . . . . . . 1 . . Largest Group 1 | . . . . . . 1 . . Highest-Rated Group 10 | . . . . . . 10 . . Highest-Rated Ally 10 | . . . . . . 10 . . Total Orders 1 | . . . . . . 1 . . ROAM 1 | . . . . . . 1 . . Ally Attacks . | . . . . . . . . . Total Damage . | . . . . . . . . . Kills . | . . . . . . . . . Allies Corrupted . | . . . . . . . . . Allies Melted . | . . . . . . . . . Intel | -11 -10 -10 -9 -9 -8 -7 -6 -5 ------- Run | Yrd Mat Min Mat Min Mat Fac Fac Fac Active Infowar (turns) 1547 | 4 254 68 188 . . 504 322 207 Sensors 1033 | . . . . . . 504 322 207 Seismic 514 | 4 254 68 188 . . . . . Robot Analysis Total 2 | . 1 . . . . 1 . . Derelict Logs Recovered 1 | . . . . 1 . . . . Drone Launches . | . . . . . . . . . Drone Recoveries . | . . . . . . . . . Exploration | -11 -10 -10 -9 -9 -8 -7 -6 -5 ------------- Run | Yrd Mat Min Mat Min Mat Fac Fac Fac Turns Passed 1931 | 67 254 68 225 73 102 592 322 228 Spaces Moved 3853 | 46 325 56 292 190 262 1311 725 646 Core 21 | 1 . . 9 . . . 5 6 Treads . | . . . . . . . . . Legs . | . . . . . . . . . Wheels 78 | 45 33 . . . . . . . Hover 593 | . 292 56 245 . . . . . Flight 3161 | . . . 38 190 262 1311 720 640 Fastest Speed 31 | 50 56 56 34 34 31 31 31 31 Average Speed 37 | 79 65 56 55 34 31 31 32 31 Slowest Speed 250 | 80 180 56 120 37 31 34 250 100 Overloaded Moves . | . . . . . . . . . Propulsion Burnouts . | . . . . . . . . . Robots Hopped 10 | . . . . . 2 4 1 3 Potential Cave-ins . | . . . . . . . . . Cave-ins Triggered . | . . . . . . . . . Exploration Rate (%) 26 | 4 38 21 22 58 25 28 29 10 Regions Visited 8 Branch Regions 2 Pre-discovered Areas 1 | . . . . 1 . . . . Known Exits Taken 2 | . . . . . . 1 1 . Unknown Exits Taken 6 | 1 1 1 1 1 1 . . . Scrap Searched 1 | . . . . 1 . . . . Spaces Dug . | . . . . . . . . . Terrain Destroyed . | . . . . . . . . . Melee . | . . . . . . . . . Projectile . | . . . . . . . . . AOE . | . . . . . . . . . Terrain Rammed . | . . . . . . . . . Walls Destroyed . | . . . . . . . . . Machines Disabled . | . . . . . . . . . Actions | -11 -10 -10 -9 -9 -8 -7 -6 -5 --------- Run | Yrd Mat Min Mat Min Mat Fac Fac Fac Total 4251 | 60 347 69 332 198 282 1494 810 659 Wait 247 | . 4 . 9 2 . 159 69 4 Move 3825 | 45 324 55 291 189 257 1302 722 640 Hop 10 | . . . . . 2 4 1 3 Pick Up 28 | 2 3 . 2 2 9 7 3 . Fast Attach 31 | 7 3 . 10 . 3 5 . 3 Attach 13 | . . . 3 2 3 2 1 2 Detach 9 | . 1 . 4 . 1 3 . . Swap 2 | . . 2 . . . . . . Drop 24 | . 2 . 1 2 7 10 2 . Fire 43 | 6 10 12 12 . . 2 . 1 Melee 2 | . . . . . . . . 2 Ram 4 | . . . . . . . . 4 Kick . | . . . . . . . . . Crush . | . . . . . . . . . Escape Stasis 12 | . . . . . . . 12 . Rewire . | . . . . . . . . . Trap 1 | . . . . 1 . . . . Miscellaneous . | . . . . . . . . . Route ------- -11/Scrapyard -10/Materials -10/Mines -9/Materials -9/Mines -8/Materials -7/Factory -6/Factory -5/Factory History --------- Turn | Location | Event 13 | -11/Scrapyard | Discovered new exit (range 15) 68 | -11/Scrapyard | Entered Materials 277 | -10/Materials | Discovered new exit (range 11) 317 | -10/Materials | Build established: Mutant 322 | -10/Materials | Entered Mines 388 | -10/Mines | Discovered new exit (range 5) 390 | -10/Mines | Entered Materials 390 | -9/Materials | Evolved 2 slots: Propulsion x1, Utility x1 601 | -9/Materials | Lost 5 parts (1p2n2w) 612 | -9/Materials | Discovered new exit (range 10) 615 | -9/Materials | Entered Mines 619 | -9/Mines | Learned location of Storage (-8) 653 | -9/Mines | Assembled infested the area 660 | -9/Mines | Found a hidden stash of uninstalled traps 684 | -9/Mines | Discovered new exit (range 11) 688 | -9/Mines | Entered Materials 688 | -8/Materials | Evolved 2 slots: Propulsion x1, Utility x1 713 | -8/Materials | Central database locked down 786 | -8/Materials | Discovered new exit (range 8) 790 | -8/Materials | Entered Factory 790 | -7/Factory | Evolved 2 slots: Utility x2 847 | -7/Factory | Fabricated Antigrav System? 852 | -7/Factory | Fabricated Imp. Recalibrator (x2) 964 | -7/Factory | Build established: Scavenger-Sprinter 1309 | -7/Factory | Fabricated A-02 Transporter? 1370 | -7/Factory | Discovered new exit (range 11) 1373 | -7/Factory | Identified exit to Factory 1382 | -7/Factory | Entered another Factory area 1382 | -6/Factory | Evolved 2 slots: Utility x2 1486 | -6/Factory | Fabricated Adv. Remote Datajack (x2) 1700 | -6/Factory | Discovered new exit (range 12) 1704 | -6/Factory | Identified exit to Factory 1704 | -6/Factory | Entered another Factory area 1704 | -5/Factory | Evolved 2 slots: Utility x2 1921 | -5/Factory | Core integrity fell below 50% 1926 | -5/Factory | Core integrity fell below 20% 1932 | -5/Factory | Destroyed by C-35 Carver with Carbide Saw Last Messages --------------- 01914_ Knocked back. 01915_ Flight Unit+ severed. 01916_ Knocked back. 01918_ Penetrated by Slug. 01918_ Sml. Storage Unit destroyed. 01918_ Critical hit (Blast). 01922_ Melee Analysis Suite fried. 01922_ C-35 Carver destroyed. 01922_ Slug penetrates Wall. 01925_ Slug penetrates Assembly Bed. 01925_ System Shield destroyed. 01925_ Knocked back. 01926_ Acquired 13 matter. 01927_ Knocked back. 01928_ Falx severed. 01928_ Acquired Falx. 01929_ Falx severed. 01930_ Acquired Falx. 01931_ Falx severed. 01931_ Acquired Falx. Map ----- +----------------------------------------------------+ | #????????????????????# #??????? | | ############+#########??????????????????# #??????? | | ###### #??????????????????# #??????? | | # #??????????????????# #??????? | | # #?????##########???# #??????? | | """" # """" #?????# #???? ???????? | | """" # """" "" #?????# #???? ???????? | | """" # """" """ #?????# #???? ???????? | | """" # """" F" #?????# " #???? ???????? | | # """" """ #?????# """ #???? ???????? | | [ # """" "" #?????# %""" #???? ???????? | | +##### #?????# "" #???? ???????? | | #???#################?????# "" #????????????? | | #????# #??????????????# [##???! ?????? | | ###### #################+#;####"##! #????? | | =R +????? | | ##???????????? | | #????????????? | | H #????????????? | | % |] #????????????? | | ####+####+##################;=+####+##???????????? | | ??# #??????# =ggg* #???????????? | | ??# """ """ """ #??????# ="""" #???????????? | | ??# """ """ """ #??????# g""""" #???????????? | | ??# """ """ """ #??????#cc"""""" #???????????? | | ??# #??????# @"""""" #???????????? | | ??# """ """ """ #??????# % #???????????? | | ??# """ """ """ #??????# """""" #???????????? | | ??# """ """ """ #??????# """""" #???????????? | | ??# #??????# """""" #???????????? | | ??# #??????# """""" #???????????? | | ??# ! #??????# #???????????? | | ??###############???????##############???????????? | | | | | | | | | | | | | | | | | | | | | | | | | | | | | | | | | | | +----------------------------------------------------+ Best States ------------- Heat Dissipation 40 Energy Generation 15 Energy Capacity 140 Matter Stores 300 Matter Capacity 300 Sight Range 16 Robot Scan Range 15 Terrain Scan Density 210 Armor Coverage 150 Propulsion Shielding 33 Evasion (%) 63 Offensive Hacking 10 Defensive Hacking 10 Item Schematics ----------------- None Robot Schematics ------------------ None Fabricated ------------ Antigrav System | x2 | -7/Factory | Preloaded Imp. Recalibrator | x2 | -7/Factory | Preloaded A-02 Transporter | x1 | -7/Factory | Preloaded Adv. Remote Datajack | x2 | -6/Factory | Preloaded Repaired ---------- Nothing Studied --------- Hover Unit | -9/Materials | Hacked EM Pulse Gun | -9/Materials | Hacked Lgt. Assault Rifle | -9/Materials | Hacked Assault Rifle | -9/Materials | Hacked Datajack | -8/Materials | Hacked Lgt. Deuterium Engine | -8/Materials | Hacked Flight Unit | -8/Materials | Hacked Alien Tech Used ----------------- None Achievements -------------- None Challenges ------------ None Game ------ Seed AutogunPropulsionChainsaw Manual? 0 Play Time 00:37:17 Cumulative 73.9 hours Start 2026.01.03 @ 02:21:43 End 2026.01.03 @ 03:01:53 Sessions 1 Manual Loads 0 Difficulty Rogue Special Mode None Game No. 66 Rogue 66 Adventurer 0 Explorer 0 Win Type - Total 2 Types 1/0/0/1/0/0/0/0/0/0 Lore% 47 Gallery% 47 Achievement% 36 Wizard Run 0 Options --------- Layout 0 ASCII 0 Keyboard 0 Movement Mouse Keybinds 0 Fullscreen 2 Font 24/Smallcaps Map View 76x50 Zoom Use 0% Tactical HUD 1 Map Filters NONE Filters NONE Steam 1 RUN: c5ec71d2-60cc-4337-be82-c4ffa6c0f1fd